Cogmind - Beta 15 @@@ ROGUE MODE // 2025.09.14 @ 23:04:00 Player: Wotf Result: Destroyed by 98-7GA(R) with Subdweller Laser Performance ------------- Evolutions (0) 0 Regions Visited (3) 600 Robots Destroyed (27) 135 Value Destroyed (624) 624 Prototype IDs (3) 60 Alien Tech Used (0) 0 Bonus (-20) -20 TOTAL SCORE: 1399 Bonus ------- Friendly Fire -20 Cogmind --------- Core Integrity 0/250 Matter 300/300 Energy 185/200 System Corruption 2% Temperature Warning (326) Movement Walking (330) Ox3 Location -10/Subcaves Parts ------- > --- POWER (1) -------- Subdweller Power Source > --- PROPULSION (2) --- Aluminum Leg > --- UTILITY (2) ------ Large Storage Unit Hardened Light Armor Plating > --- WEAPON (2) ------- Particle Cannon Particle Cannon (fused) > --- INVENTORY (15) --- Light Ion Engine Subdweller Monowheel Heat Sink Heat Sink Large Storage Unit High-capacity Battery (250) High-capacity Matter Pod (200) Sensor Array Hardened Light Armor Plating Hardened Light Armor Plating Scrap Shield Rocket Launcher Rocket Launcher Hammer Peak State ------------ > --- POWER ------------ Subdweller Power Source > --- PROPULSION ------- Aluminum Leg Aluminum Leg > --- UTILITY ---------- Large Storage Unit Hardened Light Armor Plating > --- WEAPON ----------- Particle Cannon Particle Cannon > --- INVENTORY -------- Light Ion Engine Heat Sink Heat Sink Large Storage Unit High-capacity Battery High-capacity Matter Pod Sensor Array Hardened Light Armor Plating Hardened Light Armor Plating Scrap Shield Rocket Launcher Rocket Launcher Mining Laser Hammer [Rating: 13] Favorites ----------- Power Light Ion Engine Engine Light Ion Engine Propulsion Aluminum Leg Leg Aluminum Leg Utility Large Storage Unit Device Sensor Array Storage Large Storage Unit Protection Hardened Light Armor Plating Weapon Particle Cannon Energy Gun Small Laser Energy Cannon Particle Cannon Ballistic Gun Assault Rifle Launcher Rocket Launcher Impact Weapon Hammer Build | -11 -10 -10 -10 ------- Run | Yrd Mat Min Sub Slots Evolved . | . . . . Power . | . . . . Propulsion . | . . . . Utility . | . . . . Weapon . | . . . . Parts Attached 25 | 5 12 4 4 Power 4 | 1 1 1 1 Engine 4 | 1 1 1 1 Core . | . . . . Reactor . | . . . . Propulsion 7 | 2 4 . 1 Treads . | . . . . Leg 7 | 2 4 . 1 Wheel . | . . . . Hover . | . . . . Flight . | . . . . Utility 7 | . 4 1 2 Device 4 | . 3 1 . Storage 1 | . 1 . . Processor . | . . . . Hackware . | . . . . Protection 2 | . . . 2 Artifact . | . . . . Weapon 7 | 2 3 2 . Energy Gun 1 | 1 . . . Energy Cannon 2 | . 2 . . Ballistic Gun 2 | 1 1 . . Ballistic Cannon . | . . . . Launcher 1 | . . 1 . Special Weapon . | . . . . Impact Weapon 1 | . . 1 . Slashing Weapon . | . . . . Piercing Weapon . | . . . . Special Melee Weapon . | . . . . Unidentified Prototypes . | . . . . Parts Lost 5 | . . 1 4 Power 2 | . . 1 1 Propulsion 2 | . . . 2 Utility 1 | . . . 1 Weapon . | . . . . Highest Loss Streak 2 | . . 1 2 To Critical Strikes . | . . . . Average Backups 12 | . 12 14 14 Power 1 | . 2 . 1 Propulsion . | . 1 1 . Utility 6 | . 5 9 8 Weapon 3 | . 3 4 3 Tool/Special . | . . . . Unused Backups 15 | . 7 . 8 Power 2 | . 1 . 1 Propulsion 1 | . . . 1 Utility 5 | . . . 5 Weapon 6 | . 5 . 1 Tool/Special 1 | . 1 . . Average Slot Usage (%) 97 | . 97 98 98 Engine 13 | . 14 12 13 Leg 27 | . 27 28 27 Device 12 | . 14 14 7 Storage 12 | . 10 14 14 Protection 1 | . . . 6 Energy Cannon 16 | . 11 20 28 Ballistic Gun 9 | . 16 . . Peak Build Rating 13 | 5 11 11 13 Average Rating 9 | 4 8 10 11 On Entrance 6 | . 5 11 11 Naked Turns . | . . . . Heaviest Build 38 | 6 32 34 38 Greatest Support 20 | 20 20 20 20 Greatest Overweight (x) 3 | . 1 1 3 Average Overweight (x) . | . . 1 1 Largest Inventory Capacity 15 | 5 15 15 15 Average Capacity 13 | 5 12 15 15 Most Carried 15 | 5 15 15 15 Average Carried 12 | . 12 14 14 Final Capacity 15 | 5 15 15 15 Final Carried 15 | 5 15 15 15 Class Distribution -------------------- 91% | Mutant 8% | Scavenger-Mutant Dominant Class ---------------- Mutant | -10/Materials Mutant | -10/Mines Mutant | -10/Subcaves Resources | -11 -10 -10 -10 ----------- Run | Yrd Mat Min Sub Matter Collected 941 | 262 540 88 51 Remotely . | . . . . Salvage Created 934 | 35 696 47 156 Parts 55 | 4 42 4 5 Haulers Intercepted 1 | . 1 . . Recyclers Shooed 2 | . 2 . . Parts Field Recycled . | . . . . Retrieved Matter . | . . . . Parts Self-Destructed 1 | . . . 1 Prevented . | . . . . Kills | -11 -10 -10 -10 ------- Run | Yrd Mat Min Sub Combat Hostiles Destroyed 17 | 1 10 2 4 Guns 8 | 1 7 . . Cannons 7 | . 2 1 4 AOE 1 | . . 1 . Classes Destroyed 8 | 1 6 . 1 Worker 2 | . 1 1 . Hauler 1 | . 1 . . Recycler 3 | . 3 . . Operator 2 | . 2 . . Watcher 2 | . 2 . . Swarmer 5 | . 3 2 . Grunt 8 | 1 7 . . Subdweller 4 | . . . 4 Best Kill Streak 3 | 1 3 2 3 Combat Bots Only 3 | 1 2 2 3 Max Kills in Single Turn 1 | 1 1 1 1 Gunslinging . | . . . . Exploded 1 | . . 1 . Melee . | . . . . Uniques/NPCs Destroyed . | . . . . Combat | -11 -10 -10 -10 -------- Run | Yrd Mat Min Sub Hostile Shots Fired 88 | 3 47 5 33 Missed 20 | 2 12 1 5 Hits 68 | 1 35 4 28 Projectile 68 | 1 35 4 28 AOE 3 | . . . 3 Damage Taken 1178 | 12 366 112 688 Core 255 | . 91 1 163 Absorbed by Shields . | . . . . Core Remaining (%) 100 | 100 . . . Volleys Fired 92 | 4 52 13 23 Largest 2 | 2 2 2 2 Hottest 136 | 60 136 136 136 Shots Fired 174 | 8 103 16 47 Gun 64 | 8 56 . . Cannon 108 | . 47 14 47 Launcher 2 | . . 2 . Special . | . . . . Kinetic 53 | 4 49 . . Thermal 119 | 4 54 14 47 Explosive 2 | . . 2 . Electromagnetic . | . . . . Robot Hit Streak 8 | 2 5 4 8 Robot Miss Streak 5 | 1 4 5 3 Penetration Max . | . . . . Secondary Targets . | . . . . Shots Hit Robots 100 | 5 57 7 31 Core Hits 39 | 2 25 3 9 Critical Kills 1 | . 1 . . Critical Parts Destroyed . | . . . . Critical Strikes 1 | . 1 . . Meltdown 1 | . 1 . . Melee Attacks 3 | . . 3 . Impact 3 | . . 3 . Slashing . | . . . . Piercing . | . . . . Sneak Attacks . | . . . . Combat Hostiles . | . . . . Follow-up Attacks . | . . . . Damage Inflicted 1801 | 55 930 177 639 Guns 475 | 55 420 . . Cannons 1293 | . 510 144 639 Explosions 33 | . . 33 . Melee . | . . . . Ramming . | . . . . Kinetic 379 | 24 355 . . Thermal 1389 | 31 575 144 639 Explosive 33 | . . 33 . Electromagnetic . | . . . . Impact . | . . . . Slashing . | . . . . Piercing . | . . . . Highest Corruption 2 | . 2 2 2 Average Corruption 2 | . 2 2 2 Corruption Purged . | . . . . Corruption Blocked . | . . . . Effects 28 | . 15 3 10 Message Errors 6 | . 3 1 2 Matter Fused 5 | . 2 1 2 Heat Flow Errors 8 | . 6 . 2 Energy Discharges 3 | . . . 3 Parts Rejected 1 | . 1 . . Parts Fused 1 | . 1 . . Data Loss (minor) 2 | . 1 1 . Data Loss (major) 1 | . 1 . . Misfires 1 | . . . 1 Overload Shots . | . . . . Overflow Damage 3 | . . 3 . Projectiles 2 | . . 2 . Explosions 1 | . . 1 . Melee . | . . . . Knockbacks . | . . . . Impact . | . . . . Kinetic . | . . . . Secondary . | . . . . Self-Inflicted Damage 81 | . . 81 . Shots 2 | . . 2 . Rammed . | . . . . Targets Rammed . | . . . . Kicked . | . . . . Crushed . | . . . . Highest Temperature 455 | 6 328 225 455 Average Temperature 96 | 6 69 74 162 Received Heat Transfer 309 | 6 165 . 138 Effects 2 | . 1 . 1 Energy Bleed 1 | . 1 . . Damage (minor) 1 | . . . 1 Siege Activations . | . . . . Martial Activations . | . . . . Shielding Activations . | . . . . Robots Disrupted . | . . . . Combat Hostiles . | . . . . Robots Corrupted . | . . . . Combat Hostiles . | . . . . Parts Fried . | . . . . Impact Corruptions . | . . . . Robots Melted 1 | . 1 . . Combat Hostiles 1 | . 1 . . Parts Melted 7 | . 4 . 3 Heat Transferred 2556 | 75 1075 259 1147 Parts Sabotaged . | . . . . Parts Stolen . | . . . . Parts Stripped . | . . . . Power Chain Reactions . | . . . . Alert | -11 -10 -10 -10 ------- Run | Yrd Mat Min Sub Maximum Alert Level . | . . . . Low Security (%) 100 | 100 100 100 . Level 1 . | . . . . Level 2 . | . . . . Level 3 . | . . . . Level 4 . | . . . . Level 5 . | . . . . High Security . | . . . . Max Security . | . . . . Peak Influence 83 | 20 83 60 . Initial 24 | . 6 24 . Average 23 | 3 26 15 . Influence Increases 479 | 20 382 77 . Destroy 0b10 Robot/C 260 | 20 200 40 . Destroy 0b10 Robot/NC 50 | . 45 5 . Destroy Leader 56 | . 46 10 . Successful Hack 29 | . 29 . . Disable Machine 45 | . 45 . . Destroy Structure 24 | . 2 22 . Lose Combat Pursuer 15 | . 15 . . Influence Decreases 479 | 10 328 141 . Entered New Map 44 | . 4 40 . Time Decay 434 | 10 324 100 . Lost Part 1 | . . 1 . Squads Dispatched 1 | . 1 . . Investigation . | . . . . Extermination . | . . . . Reinforcement 1 | . 1 . . Assault . | . . . . Garrison . | . . . . Intercept . | . . . . Searches Triggered . | . . . . Construction Impeded . | . . . . Haulers Reinforced . | . . . . Active Scanning Responses . | . . . . Cargo Convoy Interrupts . | . . . . Stealth | -11 -10 -10 -10 --------- Run | Yrd Mat Min Sub Distress Signals 4 | . 4 . . Communications Jammed . | . . . . Distress Signals . | . . . . Times Spotted 29 | 1 21 2 5 Peak Tracking Total 4 | 1 4 2 3 Tactical Retreats 1 | . 1 . . Traps | -11 -10 -10 -10 ------- Run | Yrd Mat Min Sub Traps Triggered 1 | . 1 . . Indirectly . | . . . . Trap Hack Attempts . | . . . . Triggered . | . . . . Disarmed . | . . . . Reprogrammed . | . . . . Reused . | . . . . Traps Extracted . | . . . . Installed . | . . . . Triggered . | . . . . Machines | -11 -10 -10 -10 ---------- Run | Yrd Mat Min Sub Machines Disabled 3 | . 3 . . Max in Single Turn 1 | . 1 . . Machines Repaired . | . . . . Machines Dismantled . | . . . . Machines Sabotaged . | . . . . Overloaded Fab Kills . | . . . . Hacking | -11 -10 -10 -10 --------- Run | Yrd Mat Min Sub Machines Accessed 6 | . 6 . . Terminals 6 | . 6 . . Fabricators . | . . . . Repair Stations . | . . . . Recycling Units . | . . . . Scanalyzers . | . . . . Garrison Access . | . . . . Total Hacks 15 | . 15 . . Successful 10 | . 10 . . Failed 5 | . 5 . . Catastrophic . | . . . . Database Lockouts . | . . . . Manual 5 | . 5 . . Terminals 15 | . 15 . . Fabricators . | . . . . Repair Stations . | . . . . Recycling Units . | . . . . Scanalyzers . | . . . . Garrison Access . | . . . . Terminal Hacks 7 | . 7 . . Prototype ID Bank 3 | . 3 . . Emergency Access Points 1 | . 1 . . Locate Traps 1 | . 1 . . Transport Status 1 | . 1 . . Zone Layout 1 | . 1 . . Fabricator Hacks . | . . . . Repair Station Hacks . | . . . . Recycling Unit Hacks . | . . . . Scanalyzer . | . . . . Garrison Access Hacks . | . . . . Unauthorized Hacks 3 | . 3 . . Terminals 3 | . 3 . . Botnet 3 | . 3 . . Fabricators . | . . . . Repair Stations . | . . . . Recycling Units . | . . . . Scanalyzers . | . . . . Garrison Access . | . . . . Data Cores Recovered 1 | . 1 . . Used . | . . . . Hacking Detections 6 | . 6 . . Full Trace Events . | . . . . Feedback Events . | . . . . Feedback Blocked . | . . . . Robot Schematics Acquired . | . . . . Robots Built . | . . . . Authchips . | . . . . Time . | . . . . Total Robot Build Rating . | . . . . Part Schematics Acquired . | . . . . Parts Built . | . . . . Authchips . | . . . . Time . | . . . . Total Part Build Rating . | . . . . Parts Repaired . | . . . . Time . | . . . . Parts Recycled . | . . . . Recycled Matter . | . . . . Retrieved Matter . | . . . . Retrieved Components . | . . . . Parts Scanalyzed . | . . . . Part Schematics Acquired . | . . . . Parts Damaged . | . . . . Bothacking | -11 -10 -10 -10 ------------ Run | Yrd Mat Min Sub Used RIF Installer . | . . . . Robots Hacked . | . . . . Non-combat . | . . . . Combat . | . . . . Robot Hacks Applied . | . . . . Relay Couplers Released . | . . . . Fabnet Peak Effective % . | . . . . Robots Rewired . | . . . . Allies Hacked . | . . . . Hacks Repelled . | . . . . Allies | -11 -10 -10 -10 -------- Run | Yrd Mat Min Sub Total Allies . | . . . . Largest Group . | . . . . Highest-Rated Group . | . . . . Highest-Rated Ally . | . . . . Total Orders . | . . . . Ally Attacks . | . . . . Total Damage . | . . . . Kills . | . . . . Allies Corrupted . | . . . . Allies Melted . | . . . . Intel | -11 -10 -10 -10 ------- Run | Yrd Mat Min Sub Active Infowar (turns) 1498 | . 807 352 339 Sensors 1190 | . 807 216 167 Structural 308 | . . 136 172 Robot Analysis Total . | . . . . Derelict Logs Recovered 2 | . . 1 1 Drone Launches . | . . . . Drone Recoveries . | . . . . Exploration | -11 -10 -10 -10 ------------- Run | Yrd Mat Min Sub Turns Passed 2656 | 102 1560 352 642 Spaces Moved 1243 | 76 763 116 288 Core 18 | 18 . . . Treads . | . . . . Legs 1225 | 58 763 116 288 Wheels . | . . . . Hover . | . . . . Flight . | . . . . Fastest Speed 50 | 50 120 190 190 Average Speed 174 | 103 171 190 191 Slowest Speed 330 | 120 190 190 330 Overloaded Moves . | . . . . Propulsion Burnouts . | . . . . Robots Hopped . | . . . . Potential Cave-ins . | . . . . Cave-ins Triggered . | . . . . Exploration Rate (%) 37 | 5 91 30 23 Regions Visited 3 Branch Regions 2 Pre-discovered Areas . | . . . . Known Exits Taken . | . . . . Unknown Exits Taken 3 | 1 1 1 . Scrap Searched . | . . . . Spaces Dug 1 | . . 1 . Terrain Destroyed 33 | . . 29 4 Melee 1 | . . 1 . Projectile 6 | . . 2 4 AOE 26 | . . 26 . Terrain Rammed . | . . . . Walls Destroyed . | . . . . Machines Disabled . | . . . . Actions | -11 -10 -10 -10 --------- Run | Yrd Mat Min Sub Total 1563 | 89 918 224 332 Wait 141 | . 43 85 13 Move 1240 | 75 762 115 288 Hop . | . . . . Pick Up 31 | 5 23 1 2 Fast Attach 15 | 5 9 . 1 Attach 7 | . 4 1 2 Detach 4 | . 4 . . Swap 9 | . 1 6 2 Drop 21 | . 20 . 1 Fire 92 | 4 52 13 23 Melee 3 | . . 3 . Ram . | . . . . Kick . | . . . . Crush . | . . . . Escape Stasis . | . . . . Rewire . | . . . . Trap . | . . . . Miscellaneous . | . . . . Route ------- -11/Scrapyard -10/Materials (discovered 4 exits: *Mat x3 / [*Min]) -10/Mines (discovered 2 exits: Mat / [*Sub]) -10/Subcaves (discovered 1 exit: [*Mat]) History --------- Turn | Location | Event 2 | -11/Scrapyard | Met Revision 17 74 | -11/Scrapyard | Discovered new exit (range 8) 103 | -11/Scrapyard | Entered Materials 300 | -10/Materials | Build established: Mutant 527 | -10/Materials | Discovered new exit (range 15) 857 | -10/Materials | Discovered new exit (range 15) 1163 | -10/Materials | Discovered new exit (range 12) 1474 | -10/Materials | Discovered new exit (range 15) 1663 | -10/Materials | Entered Mines 1720 | -10/Mines | Assembled infested the area 1994 | -10/Mines | Identified exit to Materials 1997 | -10/Mines | Discovered new exit (range 6) 2015 | -10/Mines | Entered Subcaves 2016 | -10/Subcaves | Approached by a straggling Scientist 2023 | -10/Subcaves | Learned Materials emergency access door positions 2214 | -10/Subcaves | Discovered new exit (range 10) 2478 | -10/Subcaves | Core integrity fell below 50% 2479 | -10/Subcaves | Ambushed by Subdweller buried in earth 2481 | -10/Subcaves | Ambushed by Subdweller buried in earth 2496 | -10/Subcaves | Core integrity fell below 20% 2657 | -10/Subcaves | Destroyed by 98-7GA(R) with Subdweller Laser Last Messages --------------- 02532_ System corrupted: Energy discharge (-46). 02533_ Subatomizers dissect the Sub. Monowheel. 02539_ Acquired Scrap Shield. 02548_ Subatomizers dissect the Sub. Monowheel. 02565_ Dropped Mining Laser. 02566_ Acquired Sub. Monowheel. 02575_ 5F-ZAM(O) collects matter. 4B-XZQ(c): "I think it's somewhere north of here" 02576_ Subatomizers dissect the Sub. Laser. 02582_ 5F-ZAM(O) puts together Sub. Laser. 02586_ Subatomizers dissect the Sub. Laser. 02586_ 5F-ZAM(O) collects matter. 02618_ Subatomizers dissect the Sub. Laser. 4B-XZQ(c): "I think it's somewhere northeast of here" 02630_ Subatomizers dissect the Sub. Laser. 02653_ System corrupted: Heat flow error (+238). 02654_ 98-7GA(R) affixes Scrap Shield Fragment to Scrap Shield. 02655_ Subatomizers dissect the Sub. Laser. 02655_ Aluminum Leg destroyed. 02656_ Overheating: Aluminum Leg damaged (-38). Map ----- +----------------------------------------------------+ | ?????????????????????????????????????????????????? | | ?????????????????????????????????????????????????? | | ?????????????????????????????????????????????????? | | ?????????????????????????????????????????????????? | | ?????????????????????????????????????????????????? | | ?????????????????????????????????????????????????? | | ?????????????????????????????????????????????????? | | ?????????????????????????????????????????????????? | | ?????????????????????????????????????????????????? | | ?????????????????????????????????????????????????? | | ?????????????????????????????????????????????????? | | ?????????????????????????????????????????????????? | | ?????????????????????????????????????????????????? | | ???????########??????????????????????????????????? | | ??????## ##?????????????????????????????????? | | ??????# #### #?????????????????????????????????? | | ?###??# ##??## #????###???????????#??????????????? | | ## #### #????# ##???# #????????? ???????????????? | | #????# #???# #???????? ???????????????? | | ##??## ##### #####???? " ???????????????? | | # #### #; ; ; #???" " ???????????????? | | ## ## & #??"""" ???????????????? | | ?## ######## [ ;#? %"" ????????????????? | | ??# #??????## ## "" ????????????????? | | ?? #???????# c |# """""????????????????? | | ?## #???????## [ @ """"#?????????????????? | | ??# ????????#;; R## ###?????????????????? | | ??# ????????# ; & #??#???????????????????? | | ?? ???????# ; [ #??????????????????????? | | ?? "" ???????# ;; ;######??????????????????????? | | ?? " ##??????### O #???????????????????????????? | | ?? " ??????????# #???????????????????????????? | | ?## ????????????##" ##???????????????????????????? | | ??? ?????????????# ????????????????????????????? | | ?????????????????# ????????????????????????????? | | ????????????????? ???????????????????????????? | | ????????????????? ???????????????????????????? | | ???????????????? #???????????????????????????? | | ???????????????? ##???????????????????????????? | | ??????????????? "#????????????????????????????? | | ???????????????? " ?????????????????????????????? | | ???????????????? "?????????????????????????????? | | ?????????????????????????????????????????????????? | | ?????????????????????????????????????????????????? | | ?????????????????????????????????????????????????? | | ?????????????????????????????????????????????????? | | ?????????????????????????????????????????????????? | | ?????????????????????????????????????????????????? | | ?????????????????????????????????????????????????? | | ?????????????????????????????????????????????????? | +----------------------------------------------------+ Best States ------------- Heat Dissipation 35 Energy Generation 15 Energy Capacity 250 Matter Stores 300 Matter Capacity 300 Sight Range 16 Robot Scan Range 14 Terrain Scan Density 10 Armor Coverage 150 Evasion (%) 55 Item Schematics ----------------- None Robot Schematics ------------------ None Fabricated ------------ Nothing Repaired ---------- Nothing Alien Tech Used ----------------- None Achievements -------------- None Challenges ------------ None Game ------ Seed SystemTimingReconstructor Manual? 0 Play Time 00:34:40 Cumulative 56.5 hours Start 2025.09.14 @ 19:42:30 End 2025.09.14 @ 23:04:00 Sessions 5 Manual Loads 0 Difficulty Rogue Special Mode None Game No. 46 Rogue 34 Adventurer 12 Explorer 0 Win Type - Total 1 Types 1/0/0/0/0/0/0/0/0/0 Lore% 21 Gallery% 27 Achievement% 30 Wizard Run 0 Options --------- Layout 0 ASCII 0 Keyboard 0 Movement Numpad Keybinds 0 Fullscreen 2 Font 24/Smallcaps Map View 76x50 Zoom Use 0% Tactical HUD 1 Map Filters NONE Filters NONE Steam 1 RUN: afd091e0-1f6b-42ed-bbac-b5bb9f6222e4